Cogmind - Beta 13 @@@ ROGUE MODE // 2024.07.13 @ 19:54:39 Player: N.W.L Result: Destroyed by G-34 Mercenary with Small Laser Performance ------------- Evolutions (1) 500 Regions Visited (4) 800 Robots Destroyed (11) 55 Value Destroyed (311) 311 Prototype IDs (0) 0 Alien Tech Used (0) 0 Bonus (215) 215 TOTAL SCORE: 1881 Bonus ------- Pacifist 200 High Alert Combat Kills 8 Follower Combat Kills 7 Cogmind --------- Core Integrity 0/400 Matter 28/300 Energy 39/100 System Corruption 1% Temperature Cool (6) Movement Core (50) Location -9/Storage Parts ------- > --- POWER (1) -------- (None) > --- PROPULSION (2) --- (None) > --- UTILITY (4) ------ Improved Utility Shielding Hacking Suite Hacking Suite Hacking Suite > --- WEAPON (2) ------- Mining Laser > --- INVENTORY (5) ---- Medium Storage Unit Structural Scanner Seismic Detector Improved Utility Shielding EMP Blaster Peak State ------------ > --- POWER ------------ (None) > --- PROPULSION ------- Improved Treads > --- UTILITY ---------- Improved Utility Shielding Hacking Suite Hacking Suite Hacking Suite > --- WEAPON ----------- EMP Blaster EMP Blaster > --- INVENTORY -------- Medium Storage Unit Structural Scanner Seismic Detector Improved Utility Shielding Rocket Launcher [Rating: 18] Favorites ----------- Power None Propulsion Improved Treads Treads Improved Treads Utility Hacking Suite Hackware Hacking Suite Protection Improved Utility Shielding Weapon EMP Blaster Launcher EMP Blaster Special Weapon Mining Laser Build | -11 -10 -10 -9 -9 ------- Run | Yrd Mat Min Mat Sto Slots Evolved 2 | . . . 2 . Power . | . . . . . Propulsion . | . . . . . Utility 2 | . . . 2 . Weapon . | . . . . . Parts Attached 13 | . . . 6 7 Power . | . . . . . Engine . | . . . . . Core . | . . . . . Reactor . | . . . . . Propulsion 2 | . . . . 2 Treads 2 | . . . . 2 Leg . | . . . . . Wheel . | . . . . . Hover . | . . . . . Flight . | . . . . . Utility 5 | . . . 5 . Device . | . . . . . Storage . | . . . . . Processor . | . . . . . Hackware 4 | . . . 4 . Protection 1 | . . . 1 . Artifact . | . . . . . Weapon 6 | . . . 1 5 Energy Gun . | . . . . . Energy Cannon . | . . . . . Ballistic Gun . | . . . . . Ballistic Cannon . | . . . . . Launcher 5 | . . . 1 4 Special Weapon 1 | . . . . 1 Impact Weapon . | . . . . . Slashing Weapon . | . . . . . Piercing Weapon . | . . . . . Special Melee Weapon . | . . . . . Unidentified Prototypes . | . . . . . Corrupted Parts 1 | . . . . 1 System Corruption 1 | . . . . 1 Parts Lost 5 | . . . 1 4 Power . | . . . . . Propulsion 2 | . . . . 2 Utility 1 | . . . 1 . Weapon 2 | . . . . 2 Highest Loss Streak 3 | . . . 1 3 To Critical Strikes . | . . . . . Average Slot Usage (%) 33 | . . . 42 63 Treads 3 | . . . . 11 Hackware 24 | . . . 39 33 Protection 3 | . . . 2 11 Launcher 1 | . . . . 5 Naked Turns 182 | . 25 146 11 . Heaviest Build 6 | . . . 2 6 Greatest Support 3 | 3 3 3 3 3 Greatest Overweight (x) 1 | . . . . 1 Average Overweight (x) . | . . . . . Largest Inventory Capacity 5 | 5 5 5 5 5 Average Capacity 5 | 5 5 5 5 5 Most Carried 5 | . . 1 5 5 Average Carried 3 | . . . 4 4 Final Capacity 5 | 5 5 5 5 5 Final Carried 5 | . . 1 5 5 Class Distribution -------------------- 61% | Hacker-Mutant 38% | Mutant Dominant Class ---------------- Mutant | -10/Materials Mutant | -10/Mines Hacker-Mutant | -9/Materials Hacker-Mutant | -9/Storage Resources | -11 -10 -10 -9 -9 ----------- Run | Yrd Mat Min Mat Sto Matter Collected 208 | 129 . 29 . 50 Remotely . | . . . . . Salvage Created 170 | . . . 14 156 Parts 16 | . . . 9 7 Haulers Intercepted . | . . . . . Recyclers Shooed 1 | . . . . 1 Parts Field Recycled . | . . . . . Retrieved Matter . | . . . . . Parts Self-Destructed . | . . . . . Prevented . | . . . . . Kills | -11 -10 -10 -9 -9 ------- Run | Yrd Mat Min Mat Sto Combat Hostiles Destroyed 10 | . . . 3 7 AOE 10 | . . . 3 7 Classes Destroyed 4 | . . . 2 2 Worker 1 | . . . 1 . Swarmer 3 | . . . 3 . Grunt 5 | . . . . 5 Sentry 2 | . . . . 2 Best Kill Streak 7 | . . . 4 7 Combat Bots Only 7 | . . . 3 7 Max Kills in Single Turn 2 | . . . 2 2 Gunslinging . | . . . . . Exploded 2 | . . . 2 2 Melee . | . . . . . Uniques/NPCs Destroyed . | . . . . . Combat | -11 -10 -10 -9 -9 -------- Run | Yrd Mat Min Mat Sto Hostile Shots Fired 104 | . 5 5 40 54 Missed 38 | . 1 2 14 21 Damage Taken 874 | . 33 34 294 513 Core 470 | . 33 34 245 158 Absorbed by Shields . | . . . . . Core Remaining (%) 86 | 100 . 73 . . Volleys Fired 22 | . . . 3 19 Largest 2 | . . . 1 2 Hottest 100 | . . . 33 100 Shots Fired 25 | . . . 3 22 Gun . | . . . . . Cannon . | . . . . . Launcher 21 | . . . 3 18 Special 4 | . . . . 4 Kinetic . | . . . . . Thermal 4 | . . . . 4 Explosive 17 | . . . 3 14 Electromagnetic 4 | . . . . 4 Robot Hit Streak 2 | . . . 2 1 Robot Miss Streak 2 | . . . 1 2 Penetration Max . | . . . . . Secondary Targets . | . . . . . Shots Hit Robots 5 | . . . 2 3 Core Hits 21 | . . 1 5 15 Critical Kills . | . . . . . Critical Parts Destroyed . | . . . . . Critical Strikes . | . . . . . Melee Attacks . | . . . . . Impact . | . . . . . Slashing . | . . . . . Piercing . | . . . . . Sneak Attacks . | . . . . . Combat Hostiles . | . . . . . Follow-up Attacks . | . . . . . Damage Inflicted 1258 | . . 18 309 931 Guns . | . . . . . Cannons . | . . . . . Explosions 1226 | . . . 299 927 Melee . | . . . . . Ramming 32 | . . 18 10 4 Kinetic . | . . . . . Thermal . | . . . . . Explosive 1058 | . . . 299 759 Electromagnetic 168 | . . . . 168 Impact . | . . . . . Slashing . | . . . . . Piercing . | . . . . . Highest Corruption 1 | . . . . 1 Average Corruption 1 | . . . . 1 Corruption Purged . | . . . . . Corruption Blocked . | . . . . . Overload Shots . | . . . . . Overflow Damage 42 | . . . 37 5 Projectiles . | . . . . . Explosions 42 | . . . 37 5 Melee . | . . . . . Knockbacks . | . . . . . Impact . | . . . . . Kinetic . | . . . . . Secondary . | . . . . . Self-Inflicted Damage 76 | . . 8 5 63 Shots 2 | . . . . 2 Rammed 9 | . . 5 3 1 Targets Rammed 9 | . . 5 3 1 Kicked . | . . . . . Crushed . | . . . . . Highest Temperature 6 | . . . . 6 Average Temperature 4 | . . . . 4 Received Heat Transfer 234 | . . . 96 138 Siege Activations . | . . . . . Robots Corrupted . | . . . . . Combat Hostiles . | . . . . . Parts Fried . | . . . . . Impact Corruptions . | . . . . . Robots Melted . | . . . . . Combat Hostiles . | . . . . . Parts Melted . | . . . . . Heat Transferred . | . . . . . Parts Sabotaged . | . . . . . Parts Stolen . | . . . . . Parts Stripped . | . . . . . Power Chain Reactions . | . . . . . Alert | -11 -10 -10 -9 -9 ------- Run | Yrd Mat Min Mat Sto Peak Influence 419 | . . 30 278 419 Initial 117 | . . . 11 117 Average 117 | . . 7 101 281 Maximum Alert Level 2 | . . . 1 2 Low Security (%) 81 | 100 100 100 91 42 Level 1 9 | . . . 8 22 Level 2 9 | . . . . 34 Level 3 . | . . . . . Level 4 . | . . . . . Level 5 . | . . . . . High Security . | . . . . . Max Security . | . . . . . Squads Dispatched 3 | . . . . 3 Investigation 1 | . . . . 1 Extermination . | . . . . . Reinforcement 2 | . . . . 2 Assault . | . . . . . Garrison . | . . . . . Intercept . | . . . . . Searches Triggered . | . . . . . Construction Impeded 1 | . . . . 1 Haulers Reinforced . | . . . . . Active Scanning Responses . | . . . . . Cargo Convoy Interrupts . | . . . . . Stealth | -11 -10 -10 -9 -9 --------- Run | Yrd Mat Min Mat Sto Distress Signals . | . . . . . Communications Jammed . | . . . . . Distress Signals . | . . . . . Times Spotted 33 | . 4 3 16 10 Peak Tracking Total 10 | . 4 3 10 8 Tactical Retreats 4 | . . 1 3 . Traps | -11 -10 -10 -9 -9 ------- Run | Yrd Mat Min Mat Sto Traps Triggered . | . . . . . Indirectly . | . . . . . Trap Hack Attempts . | . . . . . Triggered . | . . . . . Disarmed . | . . . . . Reprogrammed . | . . . . . Reused . | . . . . . Traps Extracted . | . . . . . Installed . | . . . . . Triggered . | . . . . . Machines | -11 -10 -10 -9 -9 ---------- Run | Yrd Mat Min Mat Sto Machines Disabled 2 | . . . . 2 Max in Single Turn 1 | . . . . 1 Machines Repaired . | . . . . . Machines Dismantled . | . . . . . Machines Sabotaged . | . . . . . Overloaded Fab Kills . | . . . . . Hacking | -11 -10 -10 -9 -9 --------- Run | Yrd Mat Min Mat Sto Machines Accessed 5 | . . . 2 3 Terminals 5 | . . . 2 3 Fabricators . | . . . . . Repair Stations . | . . . . . Recycling Units . | . . . . . Scanalyzers . | . . . . . Garrison Access . | . . . . . Total Hacks 16 | . . . 7 9 Successful 7 | . . . 5 2 Failed 9 | . . . 2 7 Catastrophic . | . . . . . Database Lockouts . | . . . . . Manual 8 | . . . 5 3 Terminals 16 | . . . 7 9 Fabricators . | . . . . . Repair Stations . | . . . . . Recycling Units . | . . . . . Scanalyzers . | . . . . . Garrison Access . | . . . . . Terminal Hacks 7 | . . . 5 2 Record 1 | . . . 1 . Robot Analysis 1 | . . . 1 . Open Door 1 | . . . . 1 Level Access Points 1 | . . . 1 . Branch Access Points 2 | . . . 1 1 Patrol Status 1 | . . . 1 . Fabricator Hacks . | . . . . . Repair Station Hacks . | . . . . . Recycling Unit Hacks . | . . . . . Scanalyzer . | . . . . . Garrison Access Hacks . | . . . . . Unauthorized Hacks . | . . . . . Terminals . | . . . . . Fabricators . | . . . . . Repair Stations . | . . . . . Recycling Units . | . . . . . Scanalyzers . | . . . . . Garrison Access . | . . . . . Data Cores Recovered . | . . . . . Used . | . . . . . Hacking Detections 3 | . . . 1 2 Full Trace Events 2 | . . . . 2 Feedback Events . | . . . . . Feedback Blocked . | . . . . . Robot Schematics Acquired . | . . . . . Robots Built . | . . . . . Authchips . | . . . . . Time . | . . . . . Total Robot Build Rating . | . . . . . Part Schematics Acquired . | . . . . . Parts Built . | . . . . . Authchips . | . . . . . Time . | . . . . . Total Part Build Rating . | . . . . . Parts Repaired . | . . . . . Time . | . . . . . Parts Recycled . | . . . . . Recycled Matter . | . . . . . Retrieved Matter . | . . . . . Retrieved Components . | . . . . . Parts Scanalyzed . | . . . . . Part Schematics Acquired . | . . . . . Parts Damaged . | . . . . . Bothacking | -11 -10 -10 -9 -9 ------------ Run | Yrd Mat Min Mat Sto Used RIF Installer . | . . . . . Robots Hacked . | . . . . . Non-combat . | . . . . . Combat . | . . . . . Robot Hacks Applied . | . . . . . Relay Couplers Released . | . . . . . Fabnet Peak Effective % . | . . . . . Robots Rewired . | . . . . . Allies Hacked . | . . . . . Hacks Repelled . | . . . . . Allies | -11 -10 -10 -9 -9 -------- Run | Yrd Mat Min Mat Sto Total Allies 2 | . . 2 . . Largest Group 2 | . . 2 . . Highest-Rated Group 42 | . . 42 . . Highest-Rated Ally 31 | . . 31 . . Total Orders . | . . . . . Ally Attacks 4 | . . 4 . . Total Damage 60 | . . 60 . . Kills 1 | . . 1 . . Allies Corrupted . | . . . . . Allies Melted . | . . . . . Intel | -11 -10 -10 -9 -9 ------- Run | Yrd Mat Min Mat Sto Robot Analysis Total 1 | . . . 1 . Derelict Logs Recovered 1 | . . 1 . . Drone Launches . | . . . . . Drone Recoveries . | . . . . . Exploration | -11 -10 -10 -9 -9 ------------- Run | Yrd Mat Min Mat Sto Turns Passed 516 | 10 25 146 192 143 Spaces Moved 707 | 19 50 279 246 113 Core 707 | 19 50 279 246 113 Treads . | . . . . . Legs . | . . . . . Wheels . | . . . . . Hover . | . . . . . Flight . | . . . . . Fastest Speed 50 | 50 50 50 50 50 Average Speed 50 | 50 50 50 50 50 Slowest Speed 100 | 50 50 50 50 100 Overloaded Moves . | . . . . . Propulsion Burnouts . | . . . . . Robots Hopped . | . . . . . Cave-ins Triggered . | . . . . . Exploration Rate (%) 26 | 4 21 61 25 19 Regions Visited 4 Branch Regions 2 Pre-discovered Areas 2 | . . 2 . . Known Exits Taken 1 | . . . 1 . Unknown Exits Taken 3 | 1 1 1 . . Scrap Searched 1 | . . 1 . . Spaces Dug 4 | . . . . 4 Terrain Destroyed 105 | . . . 4 101 Melee . | . . . . . Projectile 4 | . . . . 4 AOE 101 | . . . 4 97 Terrain Rammed . | . . . . . Walls Destroyed . | . . . . . Machines Disabled . | . . . . . Actions | -11 -10 -10 -9 -9 --------- Run | Yrd Mat Min Mat Sto Total 827 | 18 49 284 309 167 Wait 69 | . . . 47 22 Move 703 | 18 49 278 245 113 Hop . | . . . . . Pick Up 7 | . . 1 4 2 Fast Attach 10 | . . . 5 5 Attach 2 | . . . 1 1 Detach 2 | . . . 1 1 Swap 1 | . . . . 1 Drop 2 | . . . . 2 Fire 22 | . . . 3 19 Melee . | . . . . . Ram 8 | . . 5 3 . Kick . | . . . . . Crush 1 | . . . . 1 Escape Stasis . | . . . . . Rewire . | . . . . . Trap . | . . . . . Miscellaneous . | . . . . . Route ------- -11/Scrapyard -10/Materials -10/Mines (discovered 2 exits: *Mat x2) -9/Materials (discovered 5 exits: Mat x3 / *Min / *Sto) -9/Storage (discovered 1 exit: Rec) History --------- Turn | Location | Event 5 | -11/Scrapyard | Discovered new exit (range 12) 11 | -11/Scrapyard | Entered Materials 30 | -10/Materials | Discovered new exit (range 11) 36 | -10/Materials | Entered Mines 177 | -10/Mines | Discovered new exit (range 8) 179 | -10/Mines | Discovered new exit (range 9) 180 | -10/Mines | Learned location of Storage (-9) 182 | -10/Mines | Entered Materials 182 | -9/Materials | Evolved 2 slots: Utility x2 214 | -9/Materials | Identified exit to Materials 322 | -9/Materials | Identified exit to Mines 322 | -9/Materials | Identified exit to Storage 357 | -9/Materials | Core integrity fell below 50% 374 | -9/Materials | Entered Storage 406 | -9/Storage | Identified exit to Recycling 438 | -9/Storage | Core integrity fell below 20% 476 | -9/Storage | Destroyed 7 combat bots 500 | -9/Storage | Build established: Hacker-Mutant 504 | -9/Storage | Lost 3 parts (1n2w) 517 | -9/Storage | Destroyed by G-34 Mercenary with Small Laser Last Messages --------------- 00453_ U-05 Engineer lays Concrete. 00455_ The unstable cave ceiling collapses. 00455_ Y-45 Defender destroyed. 00455_ G-34 Mercenary destroyed. 00455_ U-05 Engineer lays Concrete. 00458_ The unstable cave ceiling collapses. 00458_ 20 Matter crushed. 00458_ ALERT: Construction progress impeded, dispatching reinforcements to local area. 00460_ The unstable cave ceiling collapses. 00463_ Rocket Launcher destroyed. 00466_ EMP Blaster destroyed. 00468_ The unstable cave ceiling collapses. 00469_ Acquired Corrupted Lgt. Treads. 00469_ Integrated Corrupted Lgt. Treads (+1). 00471_ The unstable cave ceiling collapses. 00473_ Imp. Treads destroyed. 00474_ U-05 Engineer lays Concrete. 00479_ Acquired Mining Laser. 00513_ Lgt. Treads destroyed. Map ----- +----------------------------------------------------+ | ?????????????????????????????????????????????????? | | ?????????????????????????????????????????????????? | | ?????????????????????????????????????????????????? | | ?????????????????????????????????????????????????? | | ?????????????????????????????????????????????????? | | ?????????????????????????????????????????????????? | | ????????????????????????????????????????"" ?????? | | ???????????????????????????????????????? ?????? | | ????????????????????????????????????????? ????? | | ?????????????????????????????????????????# ????? | | ?????????????????????????????????????????# ????? | | ?????????????????????????????????????????# ##### | | ?????????????????????????????????????????# # | | ?????????????????????????????????????????# # | | ?????????????????????????????????????????# # | | ?????????????????????????????????????????# # | | ?????????????????????????????????????????# # | | ?????????????????????????????????????????# # | | ?????????????????????????????????????????# | | ?????????????????????????????????????????# # | | ?????????????????????????????????????????# ##+## | | ????????????????????????????############## # | | ??????????????????????????### # # | | ?????????????????????????##Y; + + | | ????????????????????????##g## """ # # | | ????????????????????????#@### "R # # | | ????????>???????????????###?# """ # # "" | | ????????????????????????????# + # T" | | ????????????????????????????#### ####+##### # "" | | ???????????????????????????????#### # # | | ??????????????????????????????##### T # ##### | | ??????????????????????????????# # ## #???? | | ?????????????????????????????## #???? | | ????????????????????????????## # ## #???? | | ????????????????????????????# # #???? | | ?????????????????????????#### # #???? | | ?????????????????????????#]] [ = =%[ #???? | | ?????????????????????????#]] ###???? | | ?????????????????????????# ###?????? | | ?????????????????????????#### #??????? | | ????????????????????????????# # ###??????? | | | | | | | | | | | | | | | | | | | +----------------------------------------------------+ Best States ------------- Heat Dissipation 28 Energy Generation 5 Energy Capacity 100 Matter Stores 272 Matter Capacity 300 Sight Range 16 Terrain Scan Density 10 Utility Shielding 66 Evasion (%) 50 Recoil Reduction 1 Offensive Hacking 40 Item Schematics ----------------- None Robot Schematics ------------------ None Fabricated ------------ Nothing Alien Tech Used ----------------- None Achievements -------------- None Challenges ------------ None Game ------ Seed BombImprinterLattice Manual? 0 Play Time 00:11:13 Cumulative 196.0 hours Start 2024.07.13 @ 19:46:44 End 2024.07.13 @ 19:54:39 Sessions 1 Manual Loads 0 Difficulty Rogue Special Mode None Game No. 91 Rogue 91 Adventurer 0 Explorer 0 Win Type - Total 4 Types 2/0/2/0/0/0/0/0/0 Lore% 77 Gallery% 84 Achievement% 63 Wizard Run 0 Options --------- Layout 0 ASCII 0 Keyboard 0 Movement Mouse Keybinds 0 Fullscreen 2 Font 14/SmallcapsGlow Map View 72x54 Zoom Use 0% Tactical HUD 1 Map Filters NONE Filters NONE Steam 1 RUN: 67c247c3-972a-429c-b1ad-e2be090439f9